bitfinex/quotes_SOLUSD_20240729
["timestamp","ask_amount","ask_price","bid_price","bid_amount"]
[1722243225767,20.17,192.33,192.21,1.0401048]
[1722243225768,13.03,192.35,192.28,13.03]
[1722243226066,13.03,192.35,192.2,83.9435]
[1722243226067,20.0,192.34,192.27,13.03]
[1722243227077,33.03,192.34,192.26,13.03]
[1722243227262,13.03,192.33,192.26,13.03]
[1722243227874,17.1895,192.33,192.26,13.03]
[1722243228355,17.1895,192.33,192.25,13.03]
[1722243228775,13.03,192.33,192.2,68.3035]
[1722243229078,13.03,192.33,192.25,13.03]
[1722243230069,13.03,192.33,192.26,13.03]
[1722243230460,33.03,192.34,192.27,13.03]
[1722243230808,0.17,192.33,192.27,13.03]
[1722243232085,0.17,192.33,192.26,13.03]
[1722243236282,0.17,192.33,192.27,13.03]
[1722243240065,20.0,192.35,192.28,14.07001591]
[1722243240265,20.0,192.35,192.21,0.17]
[1722243240266,0.17,192.34,192.29,13.03]
[1722243243369,0.17,192.34,192.28,13.03]
[1722243245075,0.17,192.34,192.29,13.03]
[1722243247371,24.1591,192.35,192.29,13.03]
[1722243248495,37.1891,192.35,192.28,34.494]
[1722243249493,37.1891,192.35,192.28,21.464]
[1722243249673,13.2,192.34,192.28,21.464]
[1722243249872,17.3593,192.34,192.28,21.464]
[1722243250071,4.1595,192.33,192.28,21.464]
[1722243250976,0.17,192.32,192.28,21.464]
[1722243251598,17.1902,192.3,192.28,21.464]
[1722243251890,0.17,192.29,192.28,21.464]
[1722243252265,13.03,192.31,192.28,21.464]
[1722243252461,0.17,192.3,192.28,21.464]
[1722243253771,0.17,192.31,192.28,21.464]
[1722243257390,0.17,192.32,192.28,21.464]
[1722243257894,6.6145,192.33,192.28,21.464]
[1722243258192,0.17,192.34,192.28,34.494]
[1722243258511,6.1232,192.37,192.3,13.03]
[1722243259401,10.2818,192.37,192.3,13.03]
[1722243259771,20.0,192.36,192.3,13.03]
[1722243259990,0.17,192.35,192.3,13.03]
[1722243261183,0.17,192.36,192.3,13.03]
[1722243261892,20.17,192.36,192.3,13.03]
[1722243263284,37.3588,192.36,192.28,34.494]
[1722243263994,20.17,192.36,192.3,13.03]
[1722243264171,0.17,192.36,192.3,13.03]
[1722243264375,20.17,192.36,192.3,13.03]
[1722243266574,0.17,192.36,192.3,13.03]
[1722243266776,20.17,192.36,192.3,13.03]
[1722243267278,0.17,192.36,192.31,13.03]
[1722243267479,17.1883,192.39,192.31,13.03]
[1722243267680,69.3284,192.38,192.31,13.03]
[1722243268679,24.1584,192.38,192.31,13.03]
[1722243269302,20.0,192.38,192.31,13.03]
[1722243269481,20.0,192.38,192.32,13.03]
[1722243269684,21.6133,192.41,192.32,13.03]
[1722243269881,13.03,192.39,192.32,13.03]
[1722243270497,13.03,192.38,192.31,13.03]
[1722243272398,5.43953282,192.43,192.35,13.03]
[1722243272677,5.43953282,192.43,192.37,13.03]
[1722243272983,38.4448,192.46,192.37,13.03]
[1722243273310,17.1872,192.44,192.36,13.03]
[1722243273677,4.1572,192.44,192.38,13.03]
[1722243274980,0.17,192.43,192.38,13.03]
[1722243275395,0.17,192.43,192.37,13.03]
[1722243275593,20.17,192.43,192.37,13.03]
[1722243275994,33.2,192.43,192.37,13.03]
[1722243276810,20.17,192.43,192.37,13.03]
[1722243277881,24.3274,192.43,192.37,13.03]
[1722243278178,4.1576,192.42,192.37,13.03]
[1722243278379,4.1576,192.42,192.36,13.03]
[1722243278582,4.1576,192.42,192.31,15.1432]
[1722243278815,24.3273,192.43,192.36,13.03]
[1722243279016,37.3573,192.43,192.36,13.03]
[1722243280580,33.2,192.43,192.36,13.03]
[1722243281106,20.17,192.43,192.36,13.03]
[1722243284104,13.03,192.41,192.33,13.03]
[1722243284412,13.03,192.39,192.32,13.03]
[1722243285384,13.03,192.39,192.28,21.464]
[1722243285385,13.2,192.4,192.33,13.03]
[1722243287114,0.17,192.4,192.34,13.03]
[1722243287696,4.1576,192.42,192.34,13.03]
[1722243287898,33.03,192.45,192.37,13.03]
[1722243288197,20.0,192.45,192.38,13.03]
[1722243288398,33.03,192.45,192.38,13.03]
[1722243288599,20.0,192.45,192.39,13.03]
[1722243289299,13.03,192.4,192.33,16.0636]
[1722243289736,4.1572,192.44,192.34,13.03]
[1722243289894,4.1572,192.44,192.33,16.0636]
[1722243289895,13.03,192.42,192.35,13.03]
[1722243290092,58.2,192.43,192.36,13.03]
[1722243290799,20.17,192.45,192.37,13.03]
[1722243290800,20.0,192.45,192.37,13.03]
[1722243291002,33.03,192.45,192.38,13.03]
[1722243292006,37.1869,192.45,192.38,13.03]
[1722243292411,13.03,192.44,192.37,13.03]
[1722243292718,20.0,192.43,192.37,13.03]
[1722243294724,20.0,192.43,192.33,16.0636]
[1722243294725,17.1876,192.42,192.34,13.03]
[1722243295017,17.3577,192.41,192.34,13.03]
[1722243295526,0.17,192.41,192.34,13.03]
[1722243297037,33.03,192.43,192.36,13.03]
[1722243297524,13.03,192.43,192.36,13.03]
[1722243297718,17.3571,192.44,192.36,13.03]
[1722243297916,20.17,192.43,192.36,13.03]
[1722243298228,20.17,192.43,192.37,13.03]
[1722243300717,24.3273,192.43,192.36,13.03]
[1722243301126,37.3573,192.43,192.36,13.03]
[1722243302928,33.2,192.43,192.36,13.03]
[1722243303128,37.3574,192.43,192.35,13.03]
[1722243303750,13.03,192.39,192.29,1.03962853]
[1722243304032,13.03,192.33,192.28,21.464]
[1722243304245,15.519,192.34,192.28,21.464]
[1722243304409,13.03,192.33,192.28,21.464]
[1722243305238,13.03,192.32,192.28,21.464]
[1722243306023,13.03,192.37,192.3,13.03]
[1722243306226,20.0,192.36,192.31,13.03]
[1722243306744,20.0,192.36,192.3,13.03]
[1722243306914,13.03,192.37,192.3,13.03]
[1722243306915,33.03,192.37,192.3,13.03]
[1722243307912,17.1879,192.41,192.34,13.03]
[1722243308112,13.03,192.42,192.34,13.03]
[1722243308355,17.1876,192.42,192.34,13.03]
[1722243308525,17.1878,192.41,192.34,13.03]
[1722243309225,13.03,192.41,192.34,13.03]
[1722243310034,0.17,192.4,192.34,13.03]
[1722243311151,13.2,192.4,192.33,13.03]
[1722243311723,0.17,192.4,192.34,13.03]
[1722243314552,13.03,192.41,192.34,13.03]
[1722243315260,17.3576,192.42,192.34,13.03]
[1722243315444,20.17,192.41,192.34,13.03]
[1722243316430,24.3277,192.41,192.34,13.03]
[1722243317952,37.3577,192.41,192.34,13.03]
[1722243318156,13.03,192.4,192.33,13.03]
[1722243318660,17.188,192.4,192.33,13.03]
[1722243318962,0.17,192.39,192.32,13.03]
[1722243319748,0.17,192.39,192.33,13.03]
[1722243319941,45.17,192.4,192.33,13.03]
[1722243320339,58.2,192.4,192.33,13.03]
[1722243320544,62.358,192.4,192.33,13.03]
[1722243321851,58.2,192.4,192.33,13.03]
[1722243324467,58.2,192.4,192.32,13.03]
[1722243324661,58.2,192.4,192.33,13.03]
[1722243326851,33.03,192.41,192.34,13.03]
[1722243327163,20.0,192.41,192.35,13.03]
[1722243329161,33.03,192.41,192.34,13.03]
[1722243332168,20.0,192.41,192.35,13.03]
[1722243335582,19.6494622,192.41,192.35,13.03]
[1722243338175,19.6494622,192.41,192.34,13.03]
[1722243338375,49.328,192.4,192.33,13.03]
[1722243338556,62.358,192.4,192.33,13.03]
[1722243339076,49.328,192.4,192.34,13.03]
[1722243339265,4.1582,192.39,192.33,13.03]
[1722243339464,58.2,192.4,192.33,13.03]
[1722243339674,62.358,192.4,192.32,13.03]
[1722243339874,62.358,192.4,192.3,15.1941]
[1722243339875,17.1882,192.39,192.31,13.03]
[1722243340478,13.03,192.39,192.31,13.03]
[1722243342357,13.03,192.39,192.32,13.03]
[1722243342883,13.03,192.35,192.28,21.464]
[1722243343055,13.03,192.34,192.28,21.464]
[1722243343685,58.37,192.4,192.28,21.464]
[1722243343686,13.03,192.33,192.28,21.464]
[1722243343872,13.2,192.32,192.28,21.464]
[1722243344074,13.03,192.31,192.28,21.464]
[1722243344470,16.467,192.36,192.28,21.464]
[1722243344782,13.03,192.33,192.28,21.464]
[1722243345485,65.17,192.35,192.28,21.464]
[1722243345785,20.17,192.35,192.28,21.464]
[1722243345961,33.2,192.35,192.28,34.494]
[1722243346160,33.03,192.35,192.28,34.494]
[1722243346558,20.0,192.35,192.28,34.494]
[1722243346792,33.03,192.35,192.28,34.494]
[1722243349292,33.03,192.35,192.29,13.03]
[1722243351985,17.1893,192.34,192.28,21.464]
[1722243354398,13.03,192.34,192.28,21.464]
[1722243354773,4.329,192.35,192.28,21.464]
[1722243354975,0.17,192.34,192.28,34.494]
[1722243355185,20.0,192.35,192.28,34.494]
[1722243355382,33.03,192.35,192.29,13.03]
[1722243356199,33.03,192.35,192.28,21.464]
[1722243356200,20.0,192.35,192.3,13.03]
[1722243356492,20.0,192.35,192.28,21.464]
[1722243356493,4.1582,192.39,192.32,13.03]
[1722243356673,13.03,192.38,192.31,13.03]
[1722243357797,20.0,192.37,192.31,13.03]
[1722243359990,20.0,192.37,192.3,13.03]
[1722243360179,13.03,192.37,192.3,13.03]
[1722243361406,17.1886,192.37,192.3,13.03]
[1722243364101,17.1892,192.35,192.28,34.494]
[1722243364310,17.1893,192.34,192.28,21.464]
[1722243364984,4.1596,192.33,192.28,21.464]
[1722243365510,13.03,192.34,192.28,21.464]
[1722243365983,13.03,192.34,192.28,34.494]
[1722243367287,13.03,192.34,192.28,21.464]
[1722243367694,13.03,192.33,192.28,21.464]
[1722243368911,4.1593,192.34,192.28,21.464]
[1722243368912,13.03,192.32,192.28,21.464]
[1722243369818,13.03,192.33,192.28,21.464]
[1722243370113,13.03,192.34,192.28,21.464]
[1722243374717,17.3591,192.35,192.28,34.494]
[1722243374923,20.0,192.34,192.28,34.494]
[1722243376123,37.1893,192.34,192.28,21.464]
[1722243377416,4.1595,192.33,192.28,21.464]
[1722243378394,17.1895,192.33,192.28,21.464]
[1722243379810,13.03,192.31,192.28,21.464]
[1722243386015,13.2,192.32,192.28,21.464]
[1722243386810,0.17,192.32,192.28,21.464]
[1722243387029,20.17,192.32,192.28,21.464]
[1722243392098,33.2,192.32,192.28,21.464]
[1722243392506,13.03,192.31,192.28,21.464]
[1722243392815,17.1899,192.31,192.28,21.464]
[1722243394233,13.03,192.31,192.28,21.464]
[1722243397542,33.2,192.32,192.28,21.464]
[1722243399022,33.03,192.32,192.28,21.464]
[1722243402225,20.0,192.32,192.28,21.464]
[1722243402438,17.1895,192.33,192.28,21.464]
[1722243402816,15.02043127,192.32,192.28,21.464]
[1722243403233,17.1895,192.33,192.28,21.464]
[1722243403422,15.02043271,192.32,192.28,21.464]
[1722243405944,17.1895,192.33,192.28,21.464]
[1722243406238,15.02028614,192.32,192.28,21.464]
[1722243406808,13.03,192.3,192.28,21.464]
[1722243407040,13.03,192.29,192.28,21.464]
[1722243407343,13.03,192.3,192.28,21.464]
[1722243407512,17.1903,192.29,192.28,21.464]
[1722243407710,28.22191445,192.29,192.28,21.464]
[1722243407917,52.38221445,192.29,192.28,21.464]
[1722243408131,97.38221445,192.29,192.28,21.464]
[1722243408524,77.38221445,192.29,192.28,21.464]
[1722243408729,97.38221445,192.29,192.28,21.464]
[1722243410447,155.10511445,192.29,192.28,21.464]
[1722243410620,115.9229,192.29,192.15,13.03]
[1722243410955,13.03,192.23,192.16,13.03]
[1722243411322,13.03,192.23,192.17,13.03]
[1722243411536,4.1612,192.25,192.17,13.03]
[1722243411537,13.03,192.24,192.17,13.03]
[1722243412616,17.3612,192.25,192.18,13.03]
[1722243412814,20.17,192.24,192.18,13.03]
[1722243414522,33.2,192.24,192.17,13.03]
[1722243415556,37.3614,192.24,192.17,13.03]
[1722243416147,37.3614,192.24,192.13,1.04064723]
[1722243416352,37.3614,192.24,192.17,13.03]
[1722243418965,13.03,192.23,192.12,15.0896]
[1722243419326,13.03,192.23,192.16,13.03]
[1722243421952,17.1914,192.24,192.16,13.03]
[1722243422338,37.1917,192.23,192.16,13.03]
[1722243422649,33.03,192.23,192.16,13.03]
[1722243423131,20.0,192.23,192.16,13.03]
[1722243423545,33.03,192.23,192.16,13.03]
[1722243424861,37.1917,192.23,192.16,13.03]
[1722243434265,37.1917,192.23,192.17,13.03]
[1722243434451,24.1617,192.23,192.17,13.03]
[1722243439183,4.1617,192.23,192.17,13.03]
[1722243439386,24.1617,192.23,192.17,13.03]
[1722243439598,24.1617,192.23,192.12,15.0896]
[1722243439763,4.162,192.22,192.12,15.0896]
[1722243439967,4.162,192.22,192.15,13.03]
[1722243440469,33.03,192.23,192.15,13.03]
[1722243440665,33.03,192.23,192.12,15.0896]
[1722243440873,4.162,192.22,192.12,15.0896]
[1722243441174,4.162,192.22,192.15,13.03]
[1722243441664,33.03,192.23,192.15,13.03]
[1722243442485,37.1917,192.23,192.12,15.0896]
[1722243442786,13.03,192.21,192.14,13.03]
[1722243443161,17.1921,192.21,192.13,13.03]
[1722243443363,25.42884461,192.23,192.12,15.0896]
[1722243443364,13.03,192.19,192.12,15.0896]
[1722243443574,13.03,192.18,192.11,13.03]
[1722243444265,13.03,192.18,192.1,1.0]
[1722243444464,13.03,192.18,192.11,13.03]
[1722243445562,0.34,192.22,192.13,13.03]
[1722243445563,4.1623,192.21,192.13,13.03]
[1722243445899,48.22984464,192.22,192.16,13.03]
[1722243446064,13.2,192.22,192.15,13.03]
[1722243446253,20.0,192.21,192.15,13.03]
[1722243446990,33.03,192.21,192.1,1.0]
[1722243447171,13.03,192.19,192.12,13.03]
[1722243447984,13.03,192.19,192.13,13.03]
[1722243448186,13.03,192.2,192.13,13.03]
[1722243449190,13.03,192.2,192.12,13.03]
[1722243449388,13.03,192.19,192.12,13.03]
[1722243455499,13.03,192.2,192.13,13.03]
[1722243456071,15.02960466,192.19,192.13,13.03]
[1722243457193,28.05960466,192.19,192.1,1.0]
[1722243457397,13.03,192.19,192.12,13.03]
[1722243459467,13.03,192.19,192.11,13.03]
[1722243460281,48.06004522,192.18,192.11,13.03]
[1722243460485,13.03,192.18,192.11,13.03]
[1722243461890,13.03,192.19,192.11,13.03]
[1722243462200,35.03008255,192.18,192.12,13.03]
[1722243462375,20.0,192.18,192.12,13.03]
[1722243462575,20.0,192.18,192.13,13.03]
[1722243465306,13.03,192.19,192.13,13.03]
[1722243465506,20.0,192.18,192.13,13.03]
[1722243468701,36.936,192.23,192.16,13.03]
[1722243468702,21.286,192.23,192.16,13.03]
[1722243468906,15.02866389,192.22,192.13,15.1165]
[1722243469215,4.1616,192.24,192.18,13.03]
[1722243469391,19.18904583,192.24,192.18,13.03]
[1722243469594,15.02744583,192.23,192.18,13.03]
[1722243469793,19.18904583,192.24,192.18,13.03]
[1722243469988,19.18904583,192.24,192.13,15.1165]
[1722243469989,15.02744583,192.23,192.13,15.1165]
[1722243470202,19.18904583,192.24,192.18,13.03]
[1722243470395,35.02744583,192.23,192.18,13.03]
[1722243470615,15.02744583,192.22,192.18,13.03]
[1722243470798,20.0,192.23,192.18,13.03]
[1722243470999,15.02718901,192.22,192.18,13.03]
[1722243471228,24.1616,192.24,192.18,13.03]
[1722243471389,15.02719044,192.23,192.18,13.03]
[1722243473013,15.02719044,192.23,192.17,13.03]
[1722243473212,19.18889044,192.23,192.16,13.03]
[1722243473521,15.02709762,192.22,192.16,13.03]
[1722243473719,32.21879762,192.23,192.16,13.03]
[1722243473903,15.02709762,192.22,192.16,13.03]
[1722243474107,17.1917,192.23,192.16,13.03]
[1722243474297,15.02709762,192.22,192.16,13.03]
[1722243475022,13.03,192.21,192.14,13.03]
[1722243476505,13.03,192.21,192.14,14.07078672]
[1722243478828,13.03,192.21,192.14,13.03]
[1722243479923,13.03,192.2,192.1,1.0]
[1722243480222,20.0,192.19,192.13,13.03]
[1722243480720,33.03,192.19,192.12,13.03]
[1722243482611,13.03,192.19,192.12,13.03]
[1722243484329,15.0295551,192.18,192.12,13.03]
[1722243484816,15.0295551,192.19,192.13,13.03]
[1722243485739,15.0295551,192.19,192.14,13.03]
[1722243486044,15.65,192.26,192.18,13.03]
[1722243486045,18.7863203,192.26,192.18,13.03]
[1722243486205,15.02665675,192.25,192.19,13.03]
[1722243486401,15.02661378,192.24,192.19,13.03]
[1722243486631,28.05661378,192.25,192.18,13.03]
[1722243486827,15.02661378,192.24,192.18,13.03]
[1722243487037,19.18801378,192.24,192.18,13.03]
[1722243487430,20.0,192.23,192.18,13.03]
[1722243487733,37.1917,192.23,192.14,16.0449]
[1722243487933,4.1619,192.22,192.16,13.03]
[1722243489242,19.18913461,192.22,192.16,13.03]
[1722243489614,4.1619,192.22,192.16,13.03]
[1722243491337,19.18922251,192.22,192.16,13.03]
[1722243493938,19.18922251,192.22,192.15,13.03]
[1722243494119,19.18922251,192.22,192.14,16.0449]
[1722243494324,4.1619,192.22,192.15,13.03]
[1722243494528,17.1919,192.22,192.14,29.0749]
[1722243494830,13.03,192.18,192.11,13.03]
[1722243495034,20.0,192.17,192.11,13.03]
[1722243495927,17.1926,192.19,192.12,13.03]
[1722243496129,20.0,192.18,192.12,13.03]
[1722243501347,24.1627,192.18,192.12,13.03]
[1722243503248,24.1627,192.18,192.1,1.0]
[1722243503549,37.1927,192.18,192.11,13.03]
[1722243510643,13.03,192.15,192.1,1.0]
[1722243510960,17.1934,192.15,192.1,1.0]
[1722243511457,13.03,192.15,192.1,1.0]
[1722243512241,13.03,192.15,192.11,4.1642]
[1722243514256,13.03,192.16,192.12,4.1639]
[1722243514854,17.193,192.17,192.12,4.1639]
[1722243515165,15.03226102,192.16,192.12,13.03]
[1722243515367,15.03103975,192.2,192.15,13.03]
[1722243515540,16.0487,192.26,192.17,13.03]
[1722243515868,16.0487,192.26,192.18,13.03]
[1722243515869,32.21809795,192.25,192.18,13.03]
[1722243516173,15.02679795,192.24,192.18,13.03]
[1722243516661,17.1913,192.25,192.18,13.03]
[1722243516854,4.1614,192.24,192.18,13.03]
[1722243517961,4.1614,192.24,192.17,13.03]
[1722243518263,37.1914,192.24,192.17,13.03]
[1722243518457,20.0,192.23,192.17,13.03]
[1722243520459,24.1617,192.23,192.17,13.03]
[1722243522269,20.0,192.22,192.17,13.03]
[1722243522473,4.1617,192.23,192.17,13.03]
[1722243522771,24.1617,192.23,192.17,13.03]
[1722243523266,20.0,192.23,192.17,13.03]
[1722243523467,4.1614,192.24,192.17,13.03]
[1722243523683,17.1914,192.24,192.17,13.03]
[1722243523977,4.1619,192.22,192.16,13.03]
[1722243524147,13.03,192.22,192.15,13.03]
[1722243524344,24.1621,192.21,192.15,13.03]
[1722243525269,16.0487,192.26,192.15,13.03]
[1722243525478,4.1616,192.24,192.18,13.03]
[1722243525770,4.1616,192.23,192.17,13.03]
[1722243525976,24.1616,192.23,192.17,13.03]
[1722243530455,4.1623,192.2,192.14,28.6443]
[1722243531104,13.03,192.18,192.1,1.0]
[1722243531286,10.4049,192.22,192.1,14.03]
[1722243531287,33.03,192.17,192.1,14.03]
[1722243531592,4.1632,192.16,192.1,14.03]
[1722243532159,13.03,192.16,192.1,1.0]
[1722243532472,17.1935,192.15,192.1,1.0]
[1722243532673,13.03,192.14,192.1,1.0]
[1722243532864,17.1935,192.15,192.1,1.0]
[1722243533265,13.03,192.14,192.1,1.0]
[1722243533467,17.1935,192.15,192.1,1.0]
[1722243533666,13.03,192.15,192.1,5.1644]
[1722243534160,13.03,192.15,192.11,4.1642]
[1722243535588,17.1932,192.16,192.11,4.1642]
[1722243536199,13.03,192.16,192.11,4.1642]
[1722243536893,4.1629,192.17,192.12,4.164]
[1722243537091,13.03,192.16,192.12,4.164]
[1722243537468,4.1627,192.19,192.13,4.1637]
[1722243537664,13.03,192.17,192.13,4.1637]
[1722243537865,33.03,192.16,192.11,4.1641]
[1722243538067,33.03,192.16,192.12,4.164]
[1722243538687,33.03,192.16,192.1,1.0]
[1722243539189,20.0,192.16,192.1,14.03]
[1722243539365,13.03,192.18,192.11,14.07100199]
[1722243539564,13.03,192.18,192.12,13.03]
[1722243539764,20.0,192.17,192.12,13.03]
[1722243539973,20.0,192.18,192.12,13.03]
[1722243540491,24.1627,192.18,192.12,13.03]
[1722243541163,37.1927,192.18,192.11,13.03]
[1722243544591,13.03,192.17,192.1,1.0]
[1722243544772,17.1934,192.15,192.1,1.0]
[1722243545698,13.03,192.15,192.1,5.1644]
[1722243547605,13.03,192.15,192.11,4.1642]
[1722243552698,13.03,192.13,192.1,1.0]
[1722243552873,33.03,192.12,192.1,1.0]
[1722243553202,20.0,192.12,192.1,1.0]
[1722243553408,13.03,192.11,192.1,1.0]
[1722243553573,33.03,192.11,192.1,1.0]
[1722243556472,13.03,192.11,192.1,1.0]
[1722243556972,33.03,192.11,192.1,1.0]
[1722243557171,20.0,192.11,192.1,1.0]
[1722243559710,20.0,192.11,192.05,29.6815]
[1722243560296,20.0,192.11,192.07,4.165]
[1722243561416,37.1942,192.11,192.06,4.1653]
[1722243564305,33.03,192.11,192.06,4.1653]
[1722243565489,37.1944,192.11,192.06,4.1653]
[1722243566514,4.1645,192.1,192.01,16.5198]
[1722243566814,13.03,192.06,192.01,4.1663]
[1722243567102,17.1954,192.06,192.01,4.1663]
[1722243568106,5.41914746,192.09,192.03,13.03]
[1722243568304,20.0,192.1,192.05,13.03]
[1722243568508,20.0,192.11,192.06,4.1653]
[1722243569007,24.1643,192.11,192.06,4.1653]
[1722243569819,20.0,192.11,192.08,13.03]
[1722243570118,20.0,192.14,192.09,4.1647]
[1722243570280,24.1636,192.14,192.07,13.03]
[1722243570988,24.1636,192.14,192.07,17.1949]
[1722243571707,4.1638,192.13,192.07,17.1949]
[1722243574412,33.03,192.14,192.07,17.1949]
[1722243574413,4.164,192.12,192.07,17.1949]
[1722243574802,24.164,192.12,192.07,4.1649]
[1722243575409,4.164,192.12,192.07,4.1649]
[1722243576692,19.20005313,192.12,192.07,4.1649]
[1722243576894,20.0,192.11,192.07,4.1649]
[1722243577516,4.164,192.12,192.07,4.1649]
[1722243577814,19.19999928,192.12,192.07,4.1649]
[1722243577989,20.0,192.11,192.07,4.1649]
[1722243578691,4.164,192.12,192.07,4.1649]
[1722243578895,19.19998879,192.12,192.07,4.1649]
[1722243579094,20.0,192.11,192.07,4.1649]
[1722243579294,20.0,192.11,192.06,17.1953]
[1722243579716,4.1643,192.11,192.06,17.1953]
[1722243580121,24.1643,192.11,192.06,17.1953]
[1722243580512,20.0,192.11,192.06,17.1953]
[1722243580695,4.1641,192.12,192.06,17.1953]
[1722243581022,4.1643,192.11,192.05,17.1955]
[1722243581217,24.1643,192.11,192.05,17.1955]
[1722243581790,4.1643,192.11,192.06,4.1653]
[1722243583011,24.164,192.12,192.07,4.1651]
[1722243583635,4.164,192.12,192.07,4.1651]
[1722243583815,19.19989251,192.12,192.07,4.1651]
[1722243584010,20.0,192.11,192.07,4.1651]
[1722243584928,4.164,192.12,192.07,4.1651]
[1722243585214,19.19989251,192.12,192.07,4.1651]
[1722243585519,20.0,192.11,192.07,4.1651]
[1722243585816,20.0,192.11,192.06,13.03]
[1722243585817,24.1642,192.11,192.06,17.1953]
[1722243586119,4.1642,192.11,192.06,17.1953]
[1722243586319,24.164,192.13,192.07,4.165]
[1722243586498,15.03589538,192.12,192.07,4.165]
[1722243586698,20.0,192.11,192.06,17.1953]
[1722243587431,4.1642,192.12,192.06,17.1953]
[1722243587638,19.20002827,192.12,192.06,17.1953]
[1722243587826,20.0,192.11,192.06,17.1953]
[1722243588206,4.1642,192.12,192.06,17.1953]
[1722243588409,19.20009548,192.12,192.06,17.1953]
[1722243588633,20.0,192.11,192.06,17.1953]
[1722243589421,4.1642,192.12,192.06,17.1953]
[1722243589626,19.20009404,192.12,192.06,17.1953]
[1722243589824,20.0,192.11,192.06,17.1953]
[1722243590212,4.1642,192.12,192.06,17.1953]
[1722243590534,19.20009404,192.12,192.06,17.1953]
[1722243590837,20.0,192.11,192.06,17.1953]
[1722243591417,4.1642,192.12,192.06,17.1953]
[1722243591611,19.20015981,192.12,192.06,17.1953]
[1722243591811,20.0,192.11,192.06,17.1953]
[1722243592345,4.1642,192.12,192.06,17.1953]
[1722243592526,19.20009548,192.12,192.06,17.1953]
[1722243592727,20.0,192.11,192.06,17.1953]
[1722243593312,4.1642,192.12,192.06,17.1953]
[1722243593540,19.2001074,192.12,192.06,17.1953]
[1722243593741,15.0359074,192.12,192.07,13.03]
[1722243593947,19.1996074,192.14,192.09,13.03]
[1722243594113,0.17,192.15,192.09,13.03]
[1722243594114,15.0359074,192.13,192.1,13.03]
[1722243594449,15.0359074,192.12,192.1,4.1644]
[1722243594610,19.1993074,192.15,192.1,4.1644]
[1722243594811,19.1995074,192.14,192.09,17.1946]
[1722243595022,4.1636,192.14,192.09,4.1646]